bitfinex-derivatives/quotes_SOLF0:USTF0_20251020
["timestamp","ask_amount","ask_price","bid_price","bid_amount"]
[1760931085223,7.6946,186.88,186.79,4.8167]
[1760931086421,2.88,186.87,186.79,4.8167]
[1760931088119,2.88,186.87,186.79,6.87367951]
[1760931088721,2.05697951,186.89,186.79,6.87367951]
[1760931089520,2.05697951,186.89,186.79,2.05697951]
[1760931089824,2.05697951,186.89,186.8,4.8164]
[1760931090315,7.6941,186.9,186.8,4.8164]
[1760931091423,2.05697951,186.93,186.83,2.05697951]
[1760931091621,2.88,186.94,186.87,2.05697951]
[1760931091826,2.88,186.98,186.9,2.05697951]
[1760931092214,2.88,186.98,186.97,2.05697951]
[1760931092416,2.88,186.98,186.94,2.05697951]
[1760931092719,7.6915,187.01,186.94,2.05697951]
[1760931092924,7.6915,187.01,186.96,2.05697951]
[1760931093126,2.88,187.0,186.96,2.05697951]
[1760931093314,2.88,186.99,186.96,2.05697951]
[1760931093513,4.8115,187.01,186.96,2.05697951]
[1760931093823,2.88,187.0,186.96,2.05697951]
[1760931094022,4.8115,187.01,186.96,2.05697951]
[1760931094225,2.88,187.0,186.96,2.05697951]
[1760931094415,2.88,186.99,186.96,2.05697951]
[1760931094722,4.8115,187.01,186.96,2.05697951]
[1760931095024,2.88,187.0,186.96,2.05697951]
[1760931095526,2.88,187.02,186.96,2.05697951]
[1760931095724,11.35440401,187.02,186.96,2.05697951]
[1760931095925,2.88,187.0,186.96,2.05697951]
[1760931096427,3.95719563,187.01,186.96,2.05697951]
[1760931096621,2.88,187.0,186.96,2.05697951]
[1760931096927,9.74103636,187.04,186.98,2.05697951]
[1760931097229,6.84141493,187.03,186.98,2.05697951]
[1760931097424,6.84141493,187.03,187.0,2.05697951]
[1760931097825,2.88,187.03,187.0,2.05697951]
[1760931098024,2.88,187.03,187.02,2.05697951]
[1760931098631,4.93053636,187.07,187.02,2.05697951]
[1760931098832,2.88,187.06,187.02,2.05697951]
[1760931099033,2.88,187.06,187.04,2.05697951]
[1760931099631,13.70837314,187.08,187.02,2.05697951]
[1760931099832,11.77887314,187.07,187.0,2.05697951]
[1760931100136,6.84833678,187.07,187.0,2.05697951]
[1760931100732,2.88,187.1,187.04,2.05697951]
[1760931101127,2.88,187.09,187.05,2.05697951]
[1760931101420,6.85219095,187.12,187.07,2.05697951]
[1760931101623,11.78272731,187.13,187.07,2.05697951]
[1760931102428,11.78272731,187.13,186.9,16.06]
[1760931102429,7.6884,187.12,187.05,2.05697951]
[1760931102633,2.88,187.08,187.01,2.05697951]
[1760931103135,2.88,187.08,186.99,2.05697951]
[1760931103428,6.85219095,187.08,186.99,2.05697951]
[1760931103631,11.37934649,187.08,186.99,2.05697951]
[1760931103830,6.85219095,187.08,186.99,2.05697951]
[1760931104029,16.18894589,187.08,186.99,2.05697951]
[1760931104227,7.6896,187.08,186.99,2.05697951]
[1760931104526,11.64973864,187.08,186.99,2.05697951]
[1760931105528,2.88,187.05,186.99,2.05697951]
[1760931107021,7.6894,187.09,187.01,2.05697951]
[1760931107227,16.23635659,187.09,187.01,2.05697951]
[1760931107421,7.6894,187.09,187.01,2.05697951]
[1760931107622,16.23586397,187.09,187.01,2.05697951]
[1760931107826,16.23586397,187.09,186.98,4.8118]
[1760931107827,2.74,187.13,186.93,5.06]
[1760931108028,2.74,187.13,187.06,2.05697951]
[1760931108333,4.79697951,187.13,186.93,5.06]
[1760931108531,4.79697951,187.13,187.04,2.05697951]
[1760931108929,4.79697951,187.13,187.04,6.86747951]
[1760931109327,2.74,187.15,187.04,4.8105]
[1760931109523,2.05697951,187.14,187.05,2.05697951]
[1760931112940,7.5476,187.15,187.04,4.8105]
[1760931117542,7.5476,187.15,187.05,4.81]
[1760931120040,4.8081,187.14,187.03,8.0234852]
[1760931120237,2.74,187.13,187.0,3.2127852]
[1760931120742,2.74,187.13,187.04,4.8102]
[1760931121545,3.2127852,187.11,187.01,4.811]
[1760931121744,2.74,187.1,187.01,4.811]
[1760931122550,2.74,187.1,187.02,4.8107]
[1760931126241,3.2127852,187.09,187.02,4.8107]
[1760931132054,2.74,187.11,186.98,107.82245312]
[1760931132351,2.74,187.11,186.99,3.2127852]
[1760931132949,2.74,187.11,187.05,4.81]
[1760931134745,8.5467165,187.14,187.06,4.8097]
[1760931134746,6.1127852,187.14,187.06,4.8097]
[1760931136346,14.68114246,187.14,187.06,4.8097]
[1760931136546,6.1127852,187.14,187.06,4.8097]
[1760931136951,14.68056962,187.14,187.06,4.8097]
[1760931137248,6.1127852,187.14,187.06,4.8097]
[1760931137754,14.66248038,187.14,187.06,4.8097]
[1760931137957,6.1127852,187.14,187.06,4.8097]
[1760931138147,14.66860295,187.14,187.06,4.8097]
[1760931138348,6.1127852,187.14,187.06,4.8097]
[1760931138544,14.67229958,187.14,187.06,4.8097]
[1760931138751,6.1127852,187.14,187.06,4.8097]
[1760931139655,10.08992111,187.14,187.06,4.8097]
[1760931140852,2.78,187.12,187.06,4.8097]
[1760931142451,6.76389183,187.12,187.06,4.8097]
[1760931142652,2.78,187.1,187.04,49.2904]
[1760931145954,2.78,187.09,187.04,44.48]
[1760931146155,2.78,187.07,187.0,44.44]
[1760931146862,7.3785735,187.07,187.0,44.44]
[1760931147055,3.98709005,187.06,187.0,49.2514]
[1760931147256,7.71053636,187.07,187.0,49.2514]
[1760931147456,8.58689162,187.06,187.0,49.2514]
[1760931147657,9.98051021,187.05,186.98,112.63445312]
[1760931147863,5.9927852,187.05,186.98,157.07445312]
[1760931148063,10.59222696,187.05,186.98,157.07445312]
[1760931148261,5.9927852,187.05,186.98,157.07445312]
[1760931148562,9.98097063,187.05,186.98,157.07445312]
[1760931148760,3.98818543,187.05,186.99,4.8115]
[1760931149063,4.93053636,187.07,186.98,152.26245312]
[1760931149363,3.98835607,187.06,186.98,152.26245312]
[1760931149863,8.58944023,187.07,187.0,4.8113]
[1760931150059,3.98835607,187.06,187.0,4.8113]
[1760931151354,4.60369041,187.06,186.98,152.26245312]
[1760931151564,6.62697941,187.1,187.05,3.2127852]
[1760931151866,2.78,187.18,187.06,44.52]
[1760931152160,9.83976461,187.2,187.06,44.52]
[1760931152161,3.98889929,187.17,187.06,44.52]
[1760931152367,2.78,187.14,187.04,3.2127852]
[1760931152665,2.78,187.12,187.05,44.52]
[1760931152863,3.98889929,187.11,187.05,44.52]
[1760931153057,2.78,187.12,187.05,44.52]
[1760931153258,3.99040154,187.11,187.05,44.52]
[1760931153454,3.99040154,187.1,187.05,44.52]
[1760931153654,6.62697941,187.12,187.05,44.52]
[1760931153655,8.79960154,187.09,187.05,44.52]
[1760931153959,2.78,187.07,187.05,44.52]
[1760931154152,2.78,187.07,186.98,107.82245312]
[1760931154359,2.78,187.07,186.99,44.52]
[1760931154560,6.77054126,187.07,186.99,44.52]
[1760931154864,3.99072186,187.06,186.99,44.52]
[1760931156166,2.78,187.07,186.99,49.3317]
[1760931156965,2.78,187.07,187.0,4.8113]
[1760931157869,3.98958531,187.1,187.01,4.811]
[1760931158069,3.98958531,187.09,187.01,4.811]
[1760931158367,7.5887,187.11,187.01,4.811]
[1760931158567,3.98904537,187.1,187.01,4.811]
[1760931158767,3.98904537,187.09,187.01,4.811]
[1760931158968,7.5887,187.11,187.01,4.811]
[1760931158969,3.98904537,187.08,187.01,4.811]
[1760931159159,3.98904537,187.1,187.01,4.811]
[1760931159365,3.98904537,187.09,187.01,4.811]
[1760931159668,3.98904537,187.08,187.01,4.811]
[1760931159857,3.98892648,187.1,187.01,4.811]
[1760931160070,3.98892648,187.09,187.01,4.811]
[1760931160360,3.98892648,187.08,187.01,4.811]
[1760931160568,3.98892648,187.1,187.01,4.811]
[1760931160768,3.98892648,187.09,187.01,4.811]
[1760931160968,3.98892648,187.08,187.01,4.811]
[1760931161165,3.98892648,187.1,187.01,4.811]
[1760931161368,3.98892648,187.09,187.01,4.811]
[1760931161565,3.98892648,187.08,187.01,4.811]
[1760931161776,3.98892648,187.1,187.01,4.811]
[1760931161974,2.78,187.08,186.99,44.52]
[1760931162169,2.78,187.06,186.99,44.52]
[1760931162370,6.76892648,187.06,186.99,44.52]
[1760931162566,2.78,187.07,186.99,44.52]
[1760931162772,6.76892648,187.06,186.99,44.52]
[1760931163075,3.98892648,187.05,186.99,44.52]
[1760931163475,2.78,187.06,186.99,44.52]
[1760931163675,3.90251773,187.05,186.99,44.52]
[1760931163874,3.90251773,187.04,186.99,44.52]
[1760931164075,3.90251773,187.03,186.99,44.52]
[1760931164277,2.78,187.06,186.99,44.52]
[1760931164473,3.90230886,187.05,186.99,44.52]
[1760931164776,3.90230886,187.04,186.99,44.52]
[1760931164977,3.90230886,187.03,186.99,44.52]
[1760931165178,2.78,187.06,186.99,44.52]
[1760931165378,3.90230824,187.05,186.99,44.52]
[1760931165579,3.90230824,187.04,186.99,44.52]
[1760931165778,3.90230824,187.03,186.99,44.52]
[1760931165980,6.76785482,187.06,186.99,44.52]
[1760931166179,3.90218048,187.05,186.99,44.52]
[1760931166379,3.90218048,187.04,186.99,44.52]
[1760931166579,3.90218048,187.03,186.99,44.52]
[1760931166779,2.78,187.06,186.99,44.52]
[1760931166978,3.90208522,187.05,186.99,44.52]
[1760931167178,3.90208522,187.04,186.99,44.52]
[1760931167372,3.90208522,187.03,186.99,44.52]
[1760931167572,2.78,187.06,186.99,44.52]
[1760931167773,3.90181403,187.05,186.99,44.52]
[1760931167977,3.90181403,187.04,186.99,44.52]
[1760931168173,3.90181403,187.03,186.99,44.52]
[1760931168373,2.78,187.06,186.99,44.52]
[1760931168575,3.90156053,187.05,186.99,44.52]
[1760931168779,3.90156053,187.04,186.99,44.52]
[1760931168978,3.90156053,187.03,186.99,44.52]
[1760931169179,2.78,187.06,186.99,44.52]
[1760931169485,3.90151508,187.05,186.99,44.52]
[1760931169682,3.90151508,187.04,186.99,44.52]
[1760931169882,3.90151508,187.03,186.99,44.52]
[1760931170084,2.78,187.06,186.99,44.52]
[1760931170285,3.90829169,187.05,186.99,44.52]
[1760931170474,3.90829169,187.04,186.99,44.52]
[1760931170680,3.90829169,187.03,186.99,44.52]
[1760931170882,2.78,187.06,186.99,44.52]
[1760931171086,3.90807097,187.05,186.99,44.52]
[1760931171386,2.64,187.03,186.99,44.52]
[1760931171686,3.90807097,187.02,186.99,44.52]
[1760931171887,2.64,187.03,186.99,44.52]
[1760931172187,3.9079593,187.02,186.99,44.52]
[1760931172383,3.98674433,187.06,186.99,44.52]
[1760931172585,3.90758074,187.05,186.99,44.52]
[1760931172785,3.90758074,187.04,186.99,46.57757159]
[1760931173088,3.90758074,187.03,186.99,46.57757159]
[1760931173386,2.64,187.06,186.99,46.57757159]
[1760931173586,3.90717073,187.05,186.99,46.57757159]
[1760931173785,3.90717073,187.04,186.99,46.57757159]
[1760931173986,3.90717073,187.03,186.99,46.57757159]
[1760931174187,6.62590735,187.06,186.99,46.57757159]
[1760931174385,3.90717087,187.05,186.99,46.57757159]
[1760931174585,3.90717087,187.04,186.99,46.57757159]
[1760931174885,3.90717087,187.03,186.99,46.57757159]
[1760931175083,2.64,187.06,186.99,51.38907159]
[1760931175282,3.90674571,187.05,186.99,51.38907159]
[1760931175488,3.90674571,187.04,186.99,51.38907159]
[1760931175793,2.64,187.06,186.99,51.38907159]
[1760931176089,3.90664993,187.05,186.99,51.38907159]
[1760931176283,2.64,187.06,186.99,51.38907159]
[1760931176284,3.90664993,187.04,186.99,51.38907159]
[1760931176478,2.64,187.06,186.99,51.38907159]
[1760931176688,3.90663698,187.05,186.99,51.38907159]
[1760931176887,3.90663698,187.04,186.99,51.38907159]
[1760931177089,2.64,187.06,186.99,51.38907159]
[1760931177389,3.90660707,187.05,186.99,51.38907159]
[1760931177586,3.90660707,187.04,186.99,51.38907159]
[1760931177790,3.90660707,187.03,186.99,51.38907159]
[1760931178088,2.64,187.06,186.99,51.38907159]
[1760931178286,3.90680651,187.05,186.99,51.38907159]
[1760931178483,3.90680651,187.04,186.99,51.38907159]
[1760931178692,3.90680651,187.03,186.99,51.38907159]
[1760931178890,2.64,187.06,186.99,51.38907159]
[1760931179086,3.90685369,187.05,187.01,6.86877159]
[1760931179287,3.90685369,187.04,187.02,44.5]
[1760931179493,3.98552477,187.07,187.03,2.05757159]
[1760931179691,3.90683811,187.06,187.03,2.05757159]
[1760931179891,3.90683811,187.05,187.03,2.05757159]
[1760931180091,3.90683811,187.04,187.03,2.05757159]
[1760931181591,7.4494,187.09,187.03,2.05757159]
[1760931181786,2.64,187.07,187.03,2.05757159]
[1760931181992,6.54730784,187.06,187.03,2.05757159]
[1760931182289,3.90730784,187.05,187.03,2.05757159]
[1760931182492,3.90730784,187.04,187.03,2.05757159]
[1760931183092,3.90730784,187.04,187.02,46.55757159]
[1760931183293,2.64,187.06,187.02,46.55757159]
[1760931183494,3.90853817,187.05,187.02,46.55757159]
[1760931183688,3.90853817,187.04,187.02,46.55757159]
[1760931183887,2.64,187.06,187.02,46.55757159]
[1760931184093,3.90853817,187.05,187.02,46.55757159]
[1760931184294,3.90853817,187.04,187.02,46.55757159]
[1760931184494,2.64,187.06,187.02,46.55757159]
[1760931184691,3.90951811,187.05,187.02,46.55757159]
[1760931184896,2.64,187.03,187.02,44.5]
[1760931185090,6.54951811,187.03,187.02,44.5]
[1760931185686,2.64,187.02,186.98,2.05757159]
[1760931185998,2.64,187.0,186.94,8.24]
[1760931186297,2.64,186.98,186.91,16.17757159]
[1760931186491,3.90951811,186.97,186.91,16.17757159]
[1760931186796,2.64,186.95,186.91,16.17757159]
[1760931186999,2.64,186.93,186.91,14.12]
[1760931187198,8.46896089,186.98,186.91,14.12]
[1760931187491,2.64,186.96,186.87,46.57757159]
[1760931187696,2.64,186.94,186.87,46.57757159]
[1760931187894,2.64,186.92,186.87,44.52]
[1760931188094,2.64,186.9,186.87,44.52]
[1760931188295,6.5468814,186.89,186.87,44.52]
[1760931188495,3.9068814,186.88,186.87,44.52]
[1760931189293,6.5468814,186.89,186.84,2.05757159]
[1760931189499,2.64,186.92,186.86,2.05757159]
[1760931189698,3.89386988,186.91,186.86,2.05757159]
[1760931189898,6.53386988,186.9,186.86,2.05757159]
[1760931190100,2.64,186.92,186.86,2.05757159]
[1760931190299,2.64,186.9,186.86,2.05757159]
[1760931190495,2.64,186.92,186.86,2.05757159]
[1760931190701,2.64,186.9,186.84,2.05757159]
[1760931190897,2.64,186.88,186.84,2.05757159]
[1760931193602,6.7099719,186.91,186.84,2.05757159]
[1760931193902,2.82,186.84,186.68,463.53594371]
[1760931194105,2.05757159,186.82,186.72,46.57757159]
[1760931194304,2.05757159,186.82,186.72,51.39627159]
[1760931194603,2.82,186.81,186.72,51.39627159]
[1760931196695,4.87757159,186.81,186.72,51.39627159]
[1760931197497,3.86682235,186.84,186.72,51.39627159]
[1760931197498,3.86682235,186.84,186.74,4.8181]
[1760931197803,2.72,186.83,186.74,6.87567159]
[1760931198003,2.05757159,186.82,186.72,46.57757159]
[1760931198402,2.72,186.81,186.72,46.57757159]
[1760931200601,4.8157,186.84,186.74,2.05757159]
[1760931200602,2.72,186.84,186.74,2.05757159]
[1760931201302,2.05757159,186.83,186.74,2.05757159]
[1760931201507,2.72,186.82,186.73,4.8184]
[1760931201810,2.05757159,186.81,186.72,46.57757159]
[1760931202603,2.05757159,186.81,186.72,51.39627159]
[1760931204709,2.72,186.82,186.72,51.39627159]
[1760931205410,2.72,186.82,186.73,2.05757159]
[1760931208408,4.77757159,186.81,186.72,49.3387]
[1760931209003,6.87397159,186.81,186.72,44.52]
[1760931209209,2.72,186.8,186.72,44.52]
[1760931220616,4.8164,186.81,186.73,2.05757159]
[1760931221516,2.72,186.8,186.72,44.52]
[1760931225218,2.72,186.8,186.72,46.57757159]
[1760931227514,7.5369,186.8,186.72,46.57757159]
[1760931228311,3.89065469,186.79,186.72,46.57757159]
[1760931228512,7.5369,186.8,186.72,46.57757159]
[1760931228714,3.89154082,186.79,186.72,46.57757159]
[1760931229013,7.5369,186.8,186.72,46.57757159]
[1760931229322,3.89154382,186.79,186.72,46.57757159]
[1760931229522,3.89154382,186.78,186.72,46.57757159]
[1760931229724,7.5369,186.8,186.72,46.57757159]
[1760931229922,3.89816511,186.79,186.72,46.57757159]
[1760931230118,3.89816511,186.78,186.72,46.57757159]
[1760931230319,3.90181762,186.77,186.72,46.57757159]
[1760931230518,3.90181762,186.76,186.72,46.57757159]
[1760931230718,7.5369,186.8,186.72,46.57757159]
[1760931231022,3.90175107,186.79,186.72,46.57757159]
[1760931231224,3.90175107,186.78,186.72,46.57757159]
[1760931231426,12.44759382,186.8,186.72,46.57757159]
[1760931231427,3.90175107,186.77,186.72,46.57757159]
[1760931231617,3.90175107,186.76,186.72,44.52]
[1760931231920,12.44759382,186.8,186.72,44.52]
[1760931232110,7.88943582,186.79,186.72,44.52]
[1760931232316,3.90667502,186.78,186.72,44.52]
[1760931232515,3.90667502,186.77,186.72,44.52]
[1760931232715,3.90667502,186.76,186.72,44.52]
[1760931232922,3.90667502,186.75,186.72,44.52]
[1760931233121,3.91050379,186.74,186.67,216.16680005]
[1760931233320,2.75,186.75,186.67,216.16680005]
[1760931233321,2.75,186.72,186.67,44.48]
[1760931233526,3.91050379,186.71,186.67,44.48]
[1760931233826,3.91050379,186.7,186.67,44.48]
[1760931234016,2.75,186.73,186.67,44.48]
[1760931234223,2.75,186.71,186.67,44.48]
[1760931234422,3.91073565,186.7,186.67,44.48]
[1760931234623,3.91073565,186.69,186.67,44.48]
[1760931234824,2.75,186.71,186.67,44.48]
[1760931235025,3.91108046,186.7,186.67,44.48]
[1760931235221,3.91108046,186.69,186.67,44.48]
[1760931235524,4.8189,186.72,186.67,44.48]
[1760931235727,3.91202077,186.71,186.67,44.48]
[1760931236027,3.91202077,186.7,186.67,44.48]
[1760931236228,3.91202077,186.69,186.67,44.48]
[1760931236429,4.8189,186.72,186.67,44.48]
[1760931236619,3.91296654,186.71,186.67,44.48]
[1760931236823,3.91296654,186.7,186.67,44.48]
[1760931237029,3.91296654,186.69,186.67,44.48]
[1760931237224,3.9141798,186.68,186.67,44.48]
[1760931237532,7.5689,186.72,186.67,44.48]
[1760931237829,3.9141798,186.71,186.67,44.48]
[1760931238025,3.9141798,186.7,186.67,44.48]
[1760931238221,3.9141798,186.69,186.67,44.48]
[1760931238530,7.5689,186.72,186.67,44.48]
[1760931238730,3.91591955,186.71,186.67,44.48]
[1760931238928,3.91591955,186.7,186.67,44.48]
[1760931239225,3.91591955,186.69,186.67,44.48]
[1760931239418,7.5689,186.72,186.67,44.48]
[1760931239623,3.91512284,186.71,186.67,44.48]
[1760931239821,3.91512284,186.7,186.67,44.48]
[1760931240019,3.91512284,186.69,186.67,44.48]
[1760931240221,3.91512284,186.68,186.67,44.48]
[1760931244432,7.5689,186.72,186.67,44.48]
[1760931244633,3.91027864,186.71,186.67,44.48]
[1760931244833,3.91027864,186.7,186.67,44.48]
[1760931245036,3.91027864,186.69,186.67,44.48]
[1760931245236,7.5689,186.72,186.67,44.48]
[1760931245437,3.90941901,186.71,186.67,44.48]
[1760931245628,3.90941901,186.7,186.67,44.48]
[1760931245833,7.66069382,186.75,186.67,44.48]
[1760931246138,6.62697941,186.78,186.71,3.22459855]
[1760931246139,3.91055385,186.74,186.71,3.22459855]
[1760931246342,4.04513742,186.77,186.71,3.22459855]
[1760931246539,3.91135287,186.76,186.71,3.22459855]
[1760931246737,3.91135287,186.75,186.71,3.22459855]
[1760931247038,3.91135287,186.74,186.71,3.22459855]
[1760931247246,6.79513742,186.77,186.71,3.22459855]
[1760931247433,3.91378566,186.76,186.71,3.22459855]
[1760931247630,3.91378566,186.75,186.71,3.22459855]
[1760931247841,3.91378566,186.74,186.71,3.22459855]
[1760931248034,6.79513742,186.77,186.71,3.22459855]
[1760931248234,3.9143182,186.76,186.71,3.22459855]
[1760931248437,3.9143182,186.75,186.71,3.22459855]
[1760931248739,3.9143182,186.74,186.71,3.22459855]
[1760931248940,6.79513742,186.77,186.71,3.22459855]
[1760931249143,3.91467917,186.76,186.71,3.22459855]
[1760931249331,3.91467917,186.75,186.71,3.22459855]
[1760931249535,3.91467917,186.74,186.71,3.22459855]
[1760931249836,4.04513742,186.77,186.71,3.22459855]
[1760931250035,3.91552608,186.76,186.71,3.22459855]
[1760931250238,3.91552608,186.75,186.71,3.22459855]
[1760931250439,3.91552608,186.74,186.71,3.22459855]
[1760931250643,6.79513742,186.77,186.71,3.22459855]
[1760931250840,3.91620919,186.76,186.71,3.22459855]
[1760931251042,2.75,186.74,186.64,3.22459855]
[1760931251344,2.75,186.7,186.61,3.22459855]
[1760931251641,2.75,186.68,186.61,3.22459855]
[1760931251837,3.91620919,186.67,186.61,3.22459855]
[1760931252043,2.75,186.65,186.58,3.22459855]
[1760931252244,3.91620919,186.64,186.58,3.22459855]
[1760931252438,2.75,186.65,186.58,3.22459855]
[1760931252638,3.95454677,186.64,186.58,3.22459855]
[1760931252839,2.75,186.65,186.58,3.22459855]
[1760931253038,3.95454677,186.64,186.58,3.22459855]
[1760931253240,2.75,186.65,186.58,3.22459855]
[1760931253441,3.95215463,186.64,186.58,3.22459855]
[1760931253643,2.75,186.65,186.58,3.22459855]
[1760931253840,3.9525253,186.64,186.58,3.22459855]
[1760931254040,4.98860868,186.68,186.59,4.8219]
[1760931254246,3.95272445,186.67,186.62,3.22459855]
[1760931254440,4.04325898,186.69,186.65,3.22459855]
[1760931254640,2.69,186.76,186.68,3.22459855]
[1760931254849,7.67860868,186.76,186.68,3.22459855]
[1760931255142,2.69,186.76,186.68,3.22459855]
[1760931255342,6.73445635,186.76,186.68,3.22459855]
[1760931255645,2.69,186.76,186.68,3.22459855]
[1760931256943,2.69,186.76,186.68,8.04429855]
[1760931258140,4.98860868,186.77,186.7,4.8192]
[1760931258340,4.04445635,186.78,186.68,3.22459855]
[1760931258642,2.72,186.78,186.7,4.8192]
[1760931259646,2.72,186.78,186.71,4.8187]
[1760931259843,9.03306503,186.8,186.71,3.22459855]
[1760931260140,7.70860868,186.82,186.74,3.22459855]
[1760931260346,4.98860868,186.81,186.74,3.22459855]
[1760931261642,4.98860868,186.83,186.77,8.04199855]
[1760931262541,4.98860868,186.83,186.73,4.8183]
[1760931262747,4.98860868,186.81,186.73,8.04289855]
[1760931263544,4.98860868,186.81,186.75,4.8179]
[1760931263740,7.70860868,186.82,186.75,4.8179]
[1760931266447,4.08287948,186.81,186.75,4.8179]
[1760931266749,4.08287948,186.8,186.75,4.8179]
[1760931266949,4.08287948,186.79,186.75,4.8179]
[1760931267252,4.08287948,186.78,186.75,4.8179]
[1760931267551,7.70860868,186.82,186.75,4.8179]
[1760931267747,4.08280754,186.81,186.75,4.8179]
[1760931267949,4.08280754,186.8,186.76,3.22459855]
[1760931268151,7.70860868,186.86,186.76,3.22459855]
[1760931268340,4.08191058,186.85,186.76,3.22459855]
[1760931268543,4.08191058,186.84,186.76,3.22459855]
[1760931268748,2.72,186.86,186.76,3.22459855]
[1760931268749,4.08191058,186.83,186.76,3.22459855]
[1760931269057,2.72,186.86,186.76,3.22459855]
[1760931269350,4.06039982,186.85,186.76,3.22459855]
[1760931269550,4.06039982,186.84,186.76,3.22459855]
[1760931269750,2.72,186.86,186.76,3.22459855]
[1760931269954,4.05912525,186.85,186.79,4.8169]
[1760931270254,2.72,186.86,186.79,4.8169]
[1760931270441,4.05739697,186.85,186.79,4.8169]
[1760931270749,2.72,186.86,186.79,4.8169]
[1760931270944,4.05739633,186.85,186.76,8.04199855]
[1760931271150,4.05739633,186.84,186.76,8.04199855]
[1760931271352,2.72,186.86,186.76,8.04199855]
[1760931271545,4.05674103,186.85,186.78,4.8171]
[1760931271741,4.05674103,186.84,186.78,4.8171]
[1760931272051,2.72,186.86,186.78,4.8171]
[1760931272352,4.05674062,186.85,186.78,4.8171]
[1760931272545,4.05674062,186.84,186.78,4.8171]
[1760931272746,2.72,186.86,186.78,4.8171]
[1760931273052,4.05579534,186.85,186.78,4.8171]
[1760931273345,2.72,186.83,186.7,106.40395753]
[1760931273542,2.72,186.8,186.7,106.40395753]
[1760931273747,2.72,186.78,186.7,106.40395753]
[1760931273950,2.72,186.76,186.7,106.40395753]
[1760931274145,4.05554582,186.75,186.7,106.40395753]
[1760931274346,2.72,186.77,186.7,106.40395753]
[1760931274545,4.05719765,186.76,186.7,106.40395753]
[1760931274752,2.72,186.74,186.7,106.40395753]
[1760931275345,2.72,186.77,186.7,106.40395753]
[1760931275540,4.05733789,186.76,186.7,106.40395753]
[1760931275748,6.77733789,186.75,186.7,106.40395753]
[1760931276049,2.72,186.75,186.7,106.40395753]
[1760931280755,4.05419163,186.74,186.7,106.40395753]
[1760931280956,2.72,186.75,186.7,106.40395753]
[1760931281157,4.05398116,186.74,186.7,106.40395753]
[1760931281357,5.94459855,186.78,186.7,106.40395753]
[1760931281558,4.05516649,186.77,186.7,106.40395753]
[1760931281756,4.05516649,186.76,186.7,106.40395753]
[1760931281955,6.77516649,186.75,186.7,106.40395753]
[1760931282155,4.05516649,186.74,186.7,106.40395753]
[1760931282357,2.72,186.75,186.7,106.40395753]
[1760931282756,5.94459855,186.78,186.7,106.40395753]
[1760931282957,4.05672235,186.77,186.7,106.40395753]
[1760931283257,4.05672235,186.76,186.7,106.40395753]
[1760931283456,4.05672235,186.75,186.7,106.40395753]
[1760931283656,5.94459855,186.78,186.7,151.14395753]
[1760931283857,4.05790546,186.77,186.7,151.14395753]
[1760931284059,4.05790546,186.76,186.7,151.14395753]
[1760931284363,4.05790546,186.75,186.7,151.14395753]
[1760931284554,5.94459855,186.78,186.7,151.14395753]
[1760931284755,4.05800201,186.77,186.7,151.14395753]
[1760931284951,6.77800201,186.76,186.7,151.14395753]
[1760931285151,4.05800201,186.75,186.7,151.14395753]
[1760931285356,4.05838151,186.74,186.7,151.14395753]
[1760931285555,2.72,186.77,186.7,151.14395753]
[1760931285760,4.05858884,186.76,186.7,151.14395753]
[1760931286058,4.05858884,186.75,186.7,151.14395753]
[1760931286260,4.05858884,186.74,186.7,151.14395753]
[1760931286462,2.72,186.77,186.7,151.14395753]
[1760931286761,4.05901666,186.76,186.7,151.14395753]
[1760931286959,4.05901666,186.75,186.7,151.14395753]
[1760931287160,4.05901666,186.74,186.7,151.14395753]
[1760931287363,2.72,186.77,186.7,151.14395753]
[1760931287562,4.05946582,186.76,186.7,151.14395753]
[1760931287762,4.05946582,186.75,186.7,151.14395753]
[1760931287954,4.05946582,186.74,186.7,151.14395753]
[1760931288160,2.72,186.77,186.7,151.14395753]